[Event "Hungarian Junior Rapid-ch 2024"]
[Site "Budapest"]
[Date "2024.03.23"]
[Round "2.1"]
[White "Minga-Nagy, Abel Inti"]
[Black "Pasti, Aron"]
[Result "0-1"]
[ECO "B47"]
[WhiteElo "1929"]
[BlackElo "2373"]
[Annotator "TA"]
[PlyCount "70"]
[EventDate "2024.03.20"]
[EventType "swiss"]
[EventCountry "HUN"]
[SourceTitle "playchess.com"]
[Source "ChessBase"]
[SourceQuality "1"]
[TimeControl "600+5"]

{[%evp 12,70,2,11,2,10,18,28,105,-19,-23,-19,172,84,96,0,0,-8,-16,-18,-4,-33,-18,-25,-30,-42,-31,-43,-21,-40,-50,-42,-42,-35,-15,-57,-5,-10,-6,-74,-77,-77,-99,-84,-39,-29,-24,-186,-203,-478,-466,-485,-467,-586,-560,-580,-566,-673,-664,-689,-685]} 1. e4 {[%emt 0:00:01]} c5 {[%emt 0:00:00]} 2. Nf3 {[%emt 0:00:01]} e6 {[%emt 0:00:01]} 3. d4 {[%emt 0:00:02]} cxd4 {[%emt 0:00:01]} 4. Nxd4 {[%emt 0:00:01]} Nc6 {[%emt 0:00:01]} 5. Nc3 {[%emt 0:00:03]} Qc7 {[%emt 0:00:00]} 6. Nxc6 {[%emt 0:00:06]} bxc6 {[%emt 0:00:02]} 7. Bd3 {[%emt 0:00:06]} d5 {[%emt 0:00:01]} 8. exd5 {[%emt 0:00:01]} cxd5 {[%emt 0:00:01]} 9. O-O {[%emt 0:00:06] Droht Nb5 und aus.} Bd6 {[%emt 0:00:01]} (9... Nf6 $11) 10. h3 {[%emt 0:00:01]} (10. Nb5 $16 Qb8 11. Nxd6+ Qxd6 12. Qg4) 10... a6 $11 {[%emt 0:00:04]} 11. Qg4 {[%emt 0:00:07][%cal Oc3d5] [#] Zielt auf Nxd5! ab.} Bh2+ {[%emt 0:00:35]} (11... f5 $11 12. Qh5+ g6) 12. Kh1 $16 {[%emt 0:00:04]} Be5 {[%emt 0:00:01][%cal Og8e7]} 13. Re1 {[%emt 0:00:21]} (13. Bf4 $16 {Bxe5 ist eine echte Drohung.} Bxf4 14. Nxd5 exd5 15. Qxg7) 13... Ne7 $1 $11 {[%emt 0:00:34]} 14. Bd2 {[%emt 0:00:17][%cal Oe1e5]} Bf6 {[%emt 0:00:25]} 15. Qh5 {[%emt 0:00:44]} Rb8 {[%emt 0:00:04]} 16. Bg5 {[%emt 0:00:42]} Bxg5 {[%emt 0:00:24]} 17. Qxg5 {[%emt 0:00:02]} O-O {[%emt 0:00:02]} 18. Rab1 {[%emt 0:00:21]} h6 {[%emt 0:00:01]} 19. Qh5 {[%emt 0:00:07]} Qf4 {[%emt 0:00:33]} 20. Qe5 {[%emt 0:00:21]} Qxe5 {[%emt 0:00:06]} (20... Qxf2 $2 21. Qxb8 Nf5 22. Ne2 $18 (22. Bxf5 Qxf5 23. Qc7 f6 $18)) 21. Rxe5 {[%emt 0:00:01]} f6 {[%emt 0:00:09]} 22. Ree1 {[%emt 0:00:01]} e5 {[%emt 0:00:03]} 23. Red1 {[%emt 0:00:35][%cal Oc3d5]} Bb7 {[%emt 0:00:27]} (23... Be6 $15) 24. Na4 {[%emt 0:00:24]} Rfc8 {[%emt 0:00:54] [#] Lässt Nc5 nicht zu. Und ...e4 würde nun gewinnen.} 25. b4 {[%emt 0:00:01]} (25. c3 $11 {hält das Gleichgewicht.}) 25... e4 $17 {[%emt 0:00:13]} 26. Bf1 {[%emt 0:00:09]} Rxc2 {[%emt 0:00:01]} 27. Nc5 {[%emt 0:00:01]} Rxa2 {[%emt 0:00:24] ...Bc8 wäre nun fies.} 28. b5 {[%emt 0:00:05]} a5 {[%emt 0:01:46]} (28... Rxf2 $2 29. bxa6 (29. Nxa6 $2 Bxa6 30. bxa6 Rxb1 $19) 29... e3 30. axb7 $18 (30. Nxb7 e2 $14) (30. Rxb7 Rxb7 31. axb7 Rb2 $18)) 29. b6 $2 {[%emt 0:00:51]} (29. Nxe4 $1 $11 a4 (29... dxe4 $2 {zu gefräßig.} 30. Bc4+ Kh8 31. Bxa2 $18) 30. Nc5) 29... Rc2 $19 {[%emt 0:01:27][%cal Ba2c2,Bc2c6,Bc6b6,Bb6b2,Bb2f2][%mdl 32]} 30. Na6 {[%emt 0:00:43]} (30. Rdc1 Rxc1 (30... Rxf2 31. Kg1 $17) 31. Rxc1) 30... Bxa6 {[%emt 0:00:08] Schwarz steht klar auf Gewinn.} 31. Bxa6 {[%emt 0:00:16]} Rc6 {[%emt 0:00:01]} ({Schwächer ist} 31... Rxf2 32. Rb5 $19) 32. Rb5 {[%emt 0:00:58]} Rbxb6 {[%emt 0:00:07]} 33. Rxb6 {[%emt 0:00:07]} Rxb6 {[%emt 0:00:01]} 34. Be2 {[%emt 0:00:04]} Rb2 {[%emt 0:00:03]} 35. Bf1 {[%emt 0:00:07]} Rxf2 {[%emt 0:00:01] Gewichteter Fehlerwert: Weiß=0.49/Schwarz=0.21 (präzise) .  Verlustzug:     	Weiß=1     	---        Fehler:       	Weiß=4     	Schwarz=3     Ungenau:       	Weiß=3     	Schwarz=1     OK:         	Weiß=4     	Schwarz=10    Bester:       	Weiß=1     	Schwarz=4     Stark:        	---       	Schwarz=1} 0-1

[Event "Hungarian Junior Rapid-ch 2024"]
[Site "Budapest"]
[Date "2024.03.23"]
[Round "2.2"]
[White "Karacsonyi, Gellert"]
[Black "Frank, Balint"]
[Result "1-0"]
[ECO "D02"]
[WhiteElo "2386"]
[BlackElo "1939"]
[Annotator "TA"]
[PlyCount "72"]
[EventDate "2024.03.20"]
[EventType "swiss"]
[EventCountry "HUN"]
[SourceTitle "playchess.com"]
[Source "ChessBase"]
[SourceQuality "1"]
[TimeControl "600+5"]

{[%evp 9,72,9,8,20,36,31,69,66,54,60,97,98,103,113,84,81,90,62,53,33,60,75,72,51,193,197,197,204,237,235,255,249,250,246,263,247,393,381,340,240,229,224,275,268,270,213,250,193,258,250,270,240,260,262,239,221,527,179,167,158,172,145,152,135,246]} 1. d4 {[%emt 0:02:00]} Nf6 {[%emt 0:00:03]} 2. Nf3 {[%emt 0:00:02]} d5 {[%emt 0:00:01]} 3. Bf4 {[%emt 0:00:02]} c5 {[%emt 0:00:02]} 4. e3 {[%emt 0:00:01]} Nc6 {[%emt 0:00:02]} 5. Nbd2 {[%emt 0:00:01]} Qb6 {[%emt 0:00:07][%csl LRb2,LRd4]} 6. dxc5 {[%emt 0:00:06]} Qxc5 {[%emt 0:00:05]} 7. a3 {[%emt 0:00:26]} Bf5 {[%emt 0:00:39]} 8. Rc1 {[%emt 0:00:22] White is slightly better.} Qb6 {[%emt 0:00:08]} 9. b4 {[%emt 0:00:08]} e6 {[%emt 0:00:29]} 10. c4 {[%emt 0:00:22][%cal Bc2c4,Bc4c5][%mdl 32]} Be7 {[%emt 0:00:42]} 11. c5 {[%emt 0:00:02]} Qd8 {[%emt 0:00:02]} 12. Bb5 {[%emt 0:00:01]} O-O {[%emt 0:01:04]} 13. O-O {[%emt 0:00:10]} Nh5 {[%emt 0:00:51]} 14. Bxc6 {[%emt 0:01:15]} bxc6 {[%emt 0:01:55]} 15. Nd4 $36 {[%emt 0:00:02][%mdl 2048] White is really pushing.} Nxf4 {[%emt 0:01:07]} 16. Nxc6 {[%emt 0:00:10] A dynamic duo of knights.} Qc7 {[%emt 0:00:08] This move loses the game for Black.} ({Black should play} 16... Nh3+ $1 $14 17. gxh3 Qc7 18. Nxe7+ Qxe7) 17. Nxe7+ $18 {[%emt 0:00:03]} Qxe7 {[%emt 0:00:02]} 18. exf4 {[%emt 0:00:01]} Qc7 {[%emt 0:00:43]} 19. Qf3 {[%emt 0:00:08]} h5 {[%emt 0:00:44]} 20. Nb3 {[%emt 0:00:09]} ({Much less strong is} 20. Qxh5 Qxf4 21. Qe2 Rfd8 $18) 20... Be4 {[%emt 0:00:47]} 21. Qe3 {[%emt 0:00:02]} a6 {[%emt 0:00:15]} 22. Nd4 {[%emt 0:00:04]} Rac8 {[%emt 0:00:42]} (22... Rab8 $142 23. Rfe1 Rfe8) 23. f3 {[%emt 0:00:09] Black is weak on the dark squares} Bg6 {[%emt 0:00:09]} 24. Qe5 {[%emt 0:00:02]} Bd3 {[%emt 0:00:42]} 25. Rfd1 {[%emt 0:00:06]} Bb5 {[%emt 0:00:01]} 26. Qxc7 {[%emt 0:00:22]} (26. Qxh5 Qxf4 27. Qg4 Qe3+ 28. Kh1 Ba4 $14) 26... Rxc7 {[%emt 0:00:01]} 27. Rc3 {[%emt 0:00:02]} Rfc8 {[%emt 0:00:22]} 28. Ra1 {[%emt 0:00:01]} Bc6 {[%emt 0:00:19]} (28... h4 $142 29. Kf2 Bc4) 29. a4 {[%emt 0:00:27]} Rb8 {[%emt 0:00:01]} 30. Rb3 {[%emt 0:02:17]} Bd7 {[%emt 0:00:11] [#]} 31. c6 $1 {[%emt 0:00:24][%mdl 512]} Bxc6 {[%emt 0:00:08] [#]} 32. Rc3 $1 {[%emt 0:00:06]} Rb6 {[%emt 0:00:07]} (32... Rxb4 33. Rxc6 (33. Nxc6 Rxf4 34. Kf2 g5 $18) 33... Rxc6 34. Nxc6 Rc4) 33. Rac1 $2 {[%emt 0:00:05]} (33. b5) 33... Rxb4 {[%emt 0:00:02] White is clearly better.} 34. Rxc6 {[%emt 0:00:59]} Rcb7 {[%emt 0:00:08]} 35. Rc8+ {[%emt 0:01:03]} Kh7 36. Nc6 Rxa4 {Weighted Error Value: White=0.18 (very precise) /Black=0.39.  Mistake:       	White=1     	Black=5      Inaccurate:     	White=1     	Black=3      OK:         	White=17    	Black=11     Best:        	White=1     	Black=2      Strong:       	White=1     	---        Brilliant:      	White=1     	---} (36... Rxf4 $16 {is a better defense.} 37. Nd8 Rb2) 1-0

[Event "Hungarian Junior Rapid-ch 2024"]
[Site "Budapest"]
[Date "2024.03.23"]
[Round "2.3"]
[White "Makay, Mark Janos"]
[Black "Pasztor, Balazs"]
[Result "0-1"]
[ECO "C54"]
[WhiteElo "2042"]
[BlackElo "2406"]
[Annotator "TA"]
[PlyCount "58"]
[EventDate "2024.03.20"]
[EventType "swiss"]
[EventCountry "HUN"]
[SourceTitle "playchess.com"]
[Source "ChessBase"]
[SourceQuality "1"]
[TimeControl "600+5"]

{[%evp 18,58,9,0,0,-20,-33,-22,-17,-104,-17,-212,-52,-58,-43,-192,-34,-202,-202,-195,-183,-301,-310,-397,-382,-391,-402,-787,-750,-771,-309,-311,-304,-296,-315,-337,-342,-509,-527,-945,-938,-844,-820]} 1. e4 {[%emt 0:00:01]} e5 {[%emt 0:00:01]} 2. Nf3 {[%emt 0:00:02]} Nc6 {[%emt 0:00:01]} 3. Bc4 {[%emt 0:00:00]} Bc5 {[%emt 0:00:02]} 4. c3 {[%emt 0:00:01]} Nf6 {[%emt 0:00:01]} 5. d4 {[%emt 0:00:03]} exd4 {[%emt 0:00:03]} 6. e5 {[%emt 0:00:01]} d5 {[%emt 0:00:02]} 7. Bb5 {[%emt 0:00:02]} Ne4 {[%emt 0:00:01]} 8. cxd4 {[%emt 0:00:02]} Bb6 {[%emt 0:00:01]} 9. h3 {[%emt 0:00:02]} O-O {[%emt 0:00:08]} 10. O-O {[%emt 0:00:03]} f6 {[%emt 0:00:11]} 11. Be3 {[%emt 0:00:02]} f5 {[%emt 0:02:01]} 12. Nc3 {[%emt 0:00:36]} f4 {[%emt 0:00:47] The position is equal.} 13. Bc1 {[%emt 0:00:32]} (13. Bxc6 $1 $11 bxc6 14. Bd2) 13... Be6 {[%emt 0:00:42] Black is more active.} (13... Ng5 $1 $17 {[%cal Rg5f3] And now ...Nxf3+ would win.} 14. Nxg5 Qxg5 15. Nxd5 Nxd4) 14. Re1 $2 {[%emt 0:01:59]} (14. Na4 $11 {and White is okay.}) 14... Ng5 $2 {[%emt 0:00:03]} (14... Nxd4 $1 $19 15. Nxd4 Nxf2 16. Kxf2 Qh4+ 17. Kf1 f3) 15. Bxc6 $15 {[%emt 0:01:35]} bxc6 {[%emt 0:00:04]} 16. Nh2 {[%emt 0:00:13] [#]} (16. Bd2 $1 $15) 16... Bd7 $2 {[%emt 0:02:04]} ({Black should try} 16... Bxh3 $1 $19 {[%cal Of4f3] ...f3! would now be deadly.} 17. gxh3 Nxh3+ 18. Kg2 Qh4) 17. h4 $2 {[%emt 0:02:21]} (17. Nf3 $15) 17... Ne6 $1 $19 {[%emt 0:00:03][%csl LRd4,LRh4]} 18. Nf3 {[%emt 0:00:01] [#]} Be8 $1 {[%emt 0:00:37] aiming for ...Bh5.} 19. Ne2 {[%emt 0:01:00]} (19. Ng5 $142 Nxg5 (19... Nxd4 20. e6 $17) 20. hxg5) 19... Bh5 {[%emt 0:00:26]} 20. Qd3 {[%emt 0:00:01]} Bxf3 {[%emt 0:00:30]} 21. Qxf3 {[%emt 0:00:01][%cal Rc1f4]} Qxh4 {[%emt 0:00:05]} ({Worse is} 21... Bxd4 22. Nxd4 Nxd4 23. Qc3 $15) 22. Rd1 {[%emt 0:00:56]} (22. Qh3 $142 Qxh3 23. gxh3) 22... Ng5 {[%emt 0:00:34]} 23. Qc3 {[%emt 0:00:13]} f3 {[%emt 0:00:22]} (23... Ne4 $142 24. Qf3 g5) 24. Bxg5 {[%emt 0:00:03]} Qxg5 {[%emt 0:00:04][%csl Gf3][%cal Rg5g2]} 25. Ng3 {[%emt 0:00:04]} fxg2 {[%emt 0:01:07]} 26. Qxc6 {[%emt 0:00:27]} Rad8 {[%emt 0:00:06]} 27. Qc1 {[%emt 0:00:35]} (27. Kxg2 {keeps fighting.} Rf4 28. f3) 27... Qg4 {[%emt 0:00:16][%cal Of8f2] Hoping for ...Rxf2! Black is clearly winning.} 28. Qe3 {[%emt 0:00:18]} Rf3 {[%emt 0:00:06]} 29. Qe2 {[%emt 0:00:13]} Rxg3 {Weighted Error Value: White=1.14/Black=0.53.  Loses game:     	White=2     	---        Mistake:       	White=5     	Black=3      Inaccurate:     	White=1     	---        OK:         	White=2     	Black=6      Best:        	White=2     	Black=5      Strong:       	---       	Black=1} (29... Bxd4 $2 {perishes.} 30. Rxd4 (30. Kxg2 Rxg3+ 31. fxg3 Qxe2+ 32. Kh3 Bxb2 33. Re1 Qh5+ 34. Kg2 Bxa1 35. Rxa1 Qe2+ 36. Kg1 Rf8 37. Rb1 Rf2 38. Rb8+ Kf7 39. e6+ Ke7 40. Rb1 Qf3 41. Re1 Qg2#) 30... Qxd4 31. Qxf3 Qxe5 32. Rc1 $18 (32. Kxg2 d4 $18)) 0-1

[Event "Hungarian Junior Rapid-ch 2024"]
[Site "Budapest"]
[Date "2024.03.23"]
[Round "2.4"]
[White "Juhasz, Agoston"]
[Black "Horvath, Andras"]
[Result "1-0"]
[ECO "C50"]
[WhiteElo "2406"]
[BlackElo "2260"]
[Annotator "TA"]
[PlyCount "81"]
[EventDate "2024.03.20"]
[EventType "swiss"]
[EventCountry "HUN"]
[SourceTitle "playchess.com"]
[Source "ChessBase"]
[SourceQuality "1"]
[TimeControl "600+5"]

{[%evp 11,81,8,7,12,12,10,27,23,23,22,23,25,23,23,25,28,25,18,12,17,24,-8,17,-10,0,-21,-25,-50,-26,-55,-6,-13,-16,-11,7,-26,26,-23,17,-40,0,0,0,0,0,0,40,0,0,0,0,0,13,0,0,0,0,0,33,0,0,0,0,0,145,101,1314,1102,2335,2241,29998,29999]} 1. e4 {[%emt 0:00:06]} e5 {[%emt 0:00:01]} 2. Nf3 {[%emt 0:00:05]} Nc6 {[%emt 0:00:02]} 3. Bc4 {[%emt 0:00:08]} Nf6 {[%emt 0:00:03]} 4. d3 {[%emt 0:00:02]} Bc5 {[%emt 0:00:01]} 5. O-O {[%emt 0:00:12]} d6 {[%emt 0:00:04]} 6. Nc3 {[%emt 0:00:10]} O-O {[%emt 0:00:15]} 7. Na4 {[%emt 0:00:06]} Bb6 {[%emt 0:00:10]} 8. c3 {[%emt 0:00:12]} Be6 {[%emt 0:00:22]} 9. Bxe6 {[%emt 0:00:44] White has an edge.} fxe6 {[%emt 0:00:02]} 10. b4 {[%emt 0:00:09]} Qe8 {[%emt 0:00:37]} 11. a3 {[%emt 0:00:19]} Nh5 {[%emt 0:02:07]} 12. Ra2 {[%emt 0:00:30]} Nf4 {[%emt 0:01:01]} 13. Nxb6 {[%emt 0:00:51]} axb6 {[%emt 0:00:06]} 14. g3 {[%emt 0:00:21]} Nh5 {[%emt 0:00:49]} 15. Kg2 {[%emt 0:00:23]} Nf6 {[%emt 0:01:17]} 16. Qe2 {[%emt 0:00:07]} Qh5 {[%emt 0:00:30]} 17. h3 {[%emt 0:00:39]} h6 {[%emt 0:00:30]} 18. Rd2 {[%emt 0:00:29]} Rf7 {[%emt 0:00:51]} 19. d4 {[%emt 0:02:07]} exd4 {[%emt 0:00:52]} (19... Raf8 {is more complex.} 20. Rd3 exd4 21. cxd4 b5) 20. Nxd4 {[%emt 0:00:43]} Qxe2 {[%emt 0:00:44]} (20... Qg6 $1 $15 {feels stronger.} 21. Nxc6 bxc6) 21. Rxe2 $11 {[%emt 0:00:02]} Nxd4 {[%emt 0:00:03]} 22. cxd4 {[%emt 0:00:02]} d5 {[%emt 0:00:10]} 23. f3 {[%emt 0:00:23]} Raf8 {[%emt 0:00:15]} ({Black should play} 23... dxe4 24. fxe4 b5) 24. Rff2 {[%emt 0:00:31]} (24. exd5 $142 exd5 25. Rfe1) 24... c6 {[%emt 0:00:33]} 25. Bf4 {[%emt 0:00:27]} (25. exd5 $11 exd5 26. a4) 25... g5 {[%emt 0:00:21]} 26. Be5 {[%emt 0:00:09]} Ra8 {[%emt 0:00:18]} 27. Re3 {[%emt 0:00:10]} Nd7 {[%emt 0:00:02]} 28. Bd6 {[%emt 0:00:04]} Kg7 {[%emt 0:00:08]} 29. Rfe2 {[%emt 0:00:17]} b5 {[%emt 0:00:07]} 30. exd5 {[%emt 0:00:12]} exd5 {[%emt 0:00:01]} 31. Re7 {[%emt 0:00:04]} Raf8 {[%emt 0:00:08]} 32. Rxf7+ {[%emt 0:00:25]} Rxf7 {[%emt 0:00:02][%mdl 4096] Endgame. KRB-KRN} 33. Re8 {[%emt 0:00:02]} Nb6 {[%emt 0:00:06]} 34. Be5+ {[%emt 0:00:09]} Kg6 {[%emt 0:00:04]} 35. f4 {[%emt 0:00:32] [#] g4 would now be deadly.} Nc4 {[%emt 0:00:02]} 36. Re6+ {[%emt 0:00:43]} Kh7 {[%emt 0:00:11]} 37. Kf3 {[%emt 0:00:06] Black must now prevent Kg4.} Nxa3 {[%emt 0:00:03]} (37... h5 $1 $11) 38. Kg4 $16 {[%emt 0:00:04]} Nc2 $2 {[%emt 0:00:05][%mdl 8192] [#]} (38... gxf4 $16 39. Bxf4 Nc2) 39. fxg5 $18 {[%emt 0:00:12]} Ne3+ {[%emt 0:00:08]} 40. Kh5 {[%emt 0:00:02]} hxg5 {[%emt 0:00:02]} 41. Rh6+ {[%emt 0:00:02] Weighted Error Value: White=0.13 (very precise) /Black=0.34.  Loses game:     	---       	Black=1      Mistake:       	White=2     	Black=3      Inaccurate:     	White=6     	Black=5      OK:         	White=9     	Black=8      Best:        	White=1     	---} 1-0

[Event "Hungarian Junior Rapid-ch 2024"]
[Site "Budapest"]
[Date "2024.03.23"]
[Round "2.5"]
[White "Szarvas, Nora"]
[Black "Palczert, Matyas"]
[Result "0-1"]
[ECO "C45"]
[WhiteElo "1955"]
[BlackElo "2297"]
[Annotator "RC"]
[PlyCount "137"]
[EventDate "2024.03.20"]
[EventType "swiss"]
[EventCountry "HUN"]
[SourceTitle "playchess.com"]
[Source "ChessBase"]
[SourceQuality "1"]
[TimeControl "600+5"]

1. e4 {[%emt 0:00:03]} e5 {[%emt 0:00:01]} 2. Nf3 {[%emt 0:00:02]} Nc6 {[%emt 0:00:02]} 3. d4 {[%emt 0:00:08]} exd4 {[%emt 0:00:04]} 4. Nxd4 {[%emt 0:00:03]} Bc5 {[%emt 0:00:04]} 5. Nb3 {[%emt 0:00:02]} Bb6 {[%emt 0:00:03]} 6. Nc3 {[%emt 0:00:04]} d6 {[%emt 0:00:05]} 7. Bc4 {[%emt 0:00:19]} Nge7 {[%emt 0:01:03]} 8. Bg5 {[%emt 0:00:07]} Ne5 {[%emt 0:01:29]} 9. Be2 {[%emt 0:00:27]} f6 {[%emt 0:00:13]} 10. Bh4 {[%emt 0:00:18]} Be6 {[%emt 0:00:24]} 11. Qd2 {[%emt 0:00:38]} Qd7 {[%emt 0:00:19]} 12. Nd5 {[%emt 0:00:11]} Bxd5 {[%emt 0:00:15]} 13. exd5 {[%emt 0:00:03]} Nf5 {[%emt 0:00:06]} 14. Bg3 {[%emt 0:00:08]} h5 {[%emt 0:00:59]} 15. Bxe5 {[%emt 0:00:51]} dxe5 {[%emt 0:00:24]} 16. Bd3 {[%emt 0:00:43]} O-O-O {[%emt 0:00:20]} 17. O-O-O {[%emt 0:00:08]} Kb8 {[%emt 0:00:13]} 18. Qe2 {[%emt 0:00:59]} Nd4 {[%emt 0:00:11]} 19. Nxd4 {[%emt 0:00:07]} Bxd4 {[%emt 0:00:02]} 20. Bc4 {[%emt 0:00:11]} Qg4 {[%emt 0:00:53]} 21. f3 {[%emt 0:00:26]} Qg5+ {[%emt 0:00:10]} 22. Kb1 {[%emt 0:00:03]} Rd6 {[%emt 0:00:11]} 23. c3 {[%emt 0:00:13]} Bc5 {[%emt 0:00:03]} 24. Rhe1 {[%emt 0:00:34]} Rhd8 {[%emt 0:00:06]} 25. Bb3 {[%emt 0:00:14]} a6 {[%emt 0:00:45]} 26. Rd2 {[%emt 0:01:03]} h4 {[%emt 0:00:10]} 27. Red1 {[%emt 0:00:13]} Qf4 {[%emt 0:00:30]} 28. h3 {[%emt 0:00:16]} c6 {[%emt 0:01:09]} 29. Qe4 {[%emt 0:00:19]} g5 {[%emt 0:00:43]} 30. Kc2 {[%emt 0:00:33]} Qg3 {[%emt 0:01:02]} 31. Qg4 {[%emt 0:00:49]} Qxg4 {[%emt 0:00:15]} 32. hxg4 {[%emt 0:00:03]} Kc7 {[%emt 0:00:11]} 33. dxc6 {[%emt 0:00:20]} Kxc6 {[%emt 0:00:03]} 34. Rxd6+ {[%emt 0:00:08]} Bxd6 {[%emt 0:00:02]} 35. Bd5+ {[%emt 0:00:08]} Kc7 {[%emt 0:00:01]} 36. c4 {[%emt 0:00:13]} b6 {[%emt 0:00:06]} 37. Kd3 {[%emt 0:00:03]} Rh8 {[%emt 0:00:06]} 38. Rh1 {[%emt 0:00:06]} Bc5 {[%emt 0:00:02]} 39. Ke4 {[%emt 0:00:03]} Kd6 {[%emt 0:00:08]} 40. Kf5 {[%emt 0:00:12]} Ke7 {[%emt 0:00:01]} 41. a4 {[%emt 0:00:14]} a5 {[%emt 0:00:05]} 42. Kg6 {[%emt 0:00:07]} Bd4 {[%emt 0:00:03]} 43. b3 {[%emt 0:00:02]} Rf8 {[%emt 0:00:18]} 44. Kf5 {[%emt 0:00:03]} Kd6 {[%emt 0:00:05]} 45. Re1 {[%emt 0:00:11]} Kc5 {[%emt 0:00:02]} 46. Rb1 {[%emt 0:00:18]} Kb4 {[%emt 0:00:06]} 47. Ke6 {[%emt 0:00:07]} Kc3 {[%emt 0:00:03]} 48. Ke7 {[%emt 0:00:04]} Bc5+ {[%emt 0:00:02]} 49. Ke6 {[%emt 0:00:02]} Kc2 {[%emt 0:00:04]} 50. Be4+ {[%emt 0:00:01]} Kd2 {[%emt 0:00:02]} 51. Rb2+ {[%emt 0:00:05]} Ke3 {[%emt 0:00:08]} 52. Bd5 {[%emt 0:00:07]} Bd4 {[%emt 0:00:05]} 53. Rc2 {[%emt 0:00:05]} Kf4 {[%emt 0:00:08]} 54. Ke7 {[%emt 0:00:05]} Bc5+ {[%emt 0:00:01]} 55. Ke6 {[%emt 0:00:02]} Kg3 {[%emt 0:00:22]} 56. Be4 {[%emt 0:00:25]} Bf2 {[%emt 0:00:04]} 57. Ke7 {[%emt 0:00:01]} Bc5+ {[%emt 0:00:01]} 58. Ke6 {[%emt 0:00:01]} Bf2 {[%emt 0:00:14]} 59. Ke7 {[%emt 0:00:01]} Rh8 {[%emt 0:00:01]} 60. Kxf6 {[%emt 0:00:08]} Kxg2 {[%emt 0:00:02]} 61. f4+ {[%emt 0:00:02]} Kg3 {[%emt 0:00:02]} 62. fxg5 {[%emt 0:00:08]} Rf8+ {[%emt 0:00:03]} 63. Kxe5 {[%emt 0:00:17]} h3 {[%emt 0:00:08]} 64. g6 {[%emt 0:00:08]} Re8+ {[%emt 0:00:02]} 65. Kf5 {[%emt 0:00:03]} Rxe4 {[%emt 0:00:07]} 66. Kxe4 {[%emt 0:00:03]} h2 {[%emt 0:00:01]} 67. Rc1 {[%emt 0:00:05]} Bg1 {[%emt 0:00:02]} 68. Rc3+ {[%emt 0:00:12]} Kh4 {[%emt 0:00:05]} 69. g7 {[%emt 0:00:06]} 0-1

[Event "Hungarian Junior Rapid-ch 2024"]
[Site "Budapest"]
[Date "2024.03.23"]
[Round "3.1"]
[White "Pasti, Aron"]
[Black "Matyassy, Lazar"]
[Result "0-1"]
[ECO "B68"]
[WhiteElo "2373"]
[BlackElo "2199"]
[Annotator "TA"]
[PlyCount "34"]
[EventDate "2024.03.20"]
[EventType "swiss"]
[EventCountry "HUN"]
[SourceTitle "playchess.com"]
[Source "ChessBase"]
[SourceQuality "1"]
[TimeControl "600+5"]

{[%evp 19,34,17,56,-4,31,-27,-27,-26,-37,-116,-67,-141,-147,-137,-146,-147,-145]} 1. e4 {[%emt 0:00:04]} c5 {[%emt 0:01:29]} 2. Nf3 {[%emt 0:00:05]} d6 {[%emt 0:00:02]} 3. d4 {[%emt 0:00:01]} cxd4 {[%emt 0:00:02]} 4. Nxd4 {[%emt 0:00:02]} Nf6 {[%emt 0:00:01]} 5. Nc3 {[%emt 0:00:03]} Nc6 {[%emt 0:00:01]} 6. Bg5 {[%emt 0:00:02]} e6 {[%emt 0:00:02]} 7. Qd2 {[%emt 0:00:01]} a6 {[%emt 0:00:02]} 8. O-O-O {[%emt 0:00:03]} Be7 {[%emt 0:00:02]} 9. f4 {[%emt 0:00:06]} Bd7 {[%emt 0:00:02]} 10. Be2 Qc7 {[%emt 0:00:12]} 11. Qe3 {[%emt 0:02:47]} ({Better is} 11. Nb3 $14) 11... Rc8 {[%emt 0:00:29]} 12. Bf3 {[%emt 0:00:29]} (12. Bxf6 $14 Bxf6 13. Ndb5 axb5 14. Nxb5) 12... b5 {[%emt 0:00:49] [#] aiming for ...b4.} 13. Nxc6 {[%emt 0:00:17] Black has an edge.} Bxc6 {[%emt 0:00:04]} 14. e5 {[%emt 0:00:02]} (14. Kb1 $1 $15) 14... dxe5 {[%emt 0:00:23]} (14... Bxf3 $17 15. gxf3 dxe5 16. Qxe5 b4 17. Qxc7 Rxc7 18. Bxf6 gxf6 (18... Bxf6 19. Ne4 $17)) 15. fxe5 {[%emt 0:01:19]} (15. Qxe5 $15 Bxf3 16. Qxc7 Rxc7 17. gxf3) 15... Bxf3 $17 {[%emt 0:01:54] Black is clearly better.} 16. gxf3 {[%emt 0:04:48] [#]} Nd5 {[%emt 0:00:53][%mdl 512]} 17. Rxd5 {[%emt 0:00:01]} exd5 {White did not feel at home in the position after the opening.   Weighted Error Value: White=0.52/Black=0.23 (precise) .  Mistake:       	White=3     	Black=1      Inaccurate:     	---       	Black=1      OK:         	White=1     	---        Best:        	---       	Black=1      Brilliant:      	---       	Black=1} 0-1